{"text_format":"3","workbook":"xlsx","n_sheets":9,"sheets":["评价汇总表","商务局","市残联","水利局河湖垃圾清理工作经费","水利局砂石管理执法工作经费","民政局殡葬改革","市场服务中心","农业农村局","部分专项经费绩效评价指标评分表 "],"not_rendered":{"defined_names":8},"read":"whole","date_system":"1900"}

{"sheet":"评价汇总表","index":0,"n_rows":11,"n_cols":6,"rows_kept":11,"merged":[[0,0,0,5]]}
["2020年度绩效评价汇总表"]
["序号","单位名称","评价项目","综合得分","评价等级","备注"]
[1,"沅江市农村农业局","整体资金支出",{"$f":"农业农村局!H31","v":95.34},{"$f":"IF(D3>=90,\"优秀\",\"良好\")","v":"优秀"},"整体资金22340.8万"]
[2,"沅江市商务局","驻外招商联络处工作专项经费",{"$f":"商务局!H21","v":91.5},"优秀","工作经费45万"]
[3,"沅江市残疾人联合会","联残疾人基本服务状况和需求信息数据更新专项经费",{"$f":"市残联!H21","v":91.5},"优秀","专项经费52.3万"]
[4,"沅江市水利局","砂石执法工作专项经费",{"$f":"水利局砂石管理执法工作经费!H21","v":88.5},"良好","工作经费366万"]
[5,"沅江市市场服务中心","整体资金支出",{"$f":"市场服务中心!H31","v":86.98},"良好","整体资金782.15万"]
[6,"沅江市民政局","殡葬改革（二期）专项经费",{"$f":"民政局殡葬改革!H21","v":84.4},"良好","专项经费2200万"]
[7,"沅江市水利局","河湖垃圾清理工作专项经费",{"$f":"水利局河湖垃圾清理工作经费!H21","v":74.78},"合格","工作经费300万"]
[]
["复核：","曾晓敏","审核：肖红艳",null,null,"制表：丁万"]

{"sheet":"商务局","index":1,"n_rows":23,"n_cols":9,"rows_kept":23,"merged":[[0,0,0,8],[1,0,1,8],[3,0,6,0],[3,1,4,1],[5,1,6,1],[7,0,8,0],[9,0,13,0],[9,1,10,1],[11,1,13,1],[14,0,15,0],[17,0,19,0],[20,0,20,2],[21,0,21,8],[22,0,22,8]]}
["2020年度沅江市商务局驻外招商联络处专项工作经费绩效评价指标评分表"]
["单位：沅江市商务局"]
["一级指标","二级指标","三级指标","分值","评分要点","评分标准","指标说明","得分","评分说明"]
["投入  （12分）","项目决策（6分）","项目设立",2,"①项目申请设立是否依据充分，所提交的文件、材料是否符合相关要求；②是否符合本部门职能职责工作需要和工作发展方向。","①②项各1分，发现一例不符扣0.5分。",null,2,"无扣分"]
[null,null,"绩效目标",4,"①是否设立绩效目标，绩效目标是否提交财政部门审核；②是否将项目绩效目标细化分解为具体的绩效指标，是否通过清晰、可衡量的指标值予以体现：③是否与项目年度任务数或计划数相对应；是否与预算确定的项目资金量相匹配。④年度绩效目标是否公示。","①②③④项各1分，发现一例不符扣0.5分。",null,3,"年度绩效目标未公示"]
[null,"预算计划（6分）","预算编制",4,"①是否编报部门预算；②资金预算测算是否合理合规、是否细化；③项目预算是否按要求进行公示。","发现一例不符扣0.5分。",null,4,"无扣分"]
[null,null,"预算调整率",2,"①预算调整率=财政年中预算调整数/年初预算数*100；②调整是否有相关依据，调整程序是否合规。","①调整率10%以内不扣分，10%--50%扣0.5分，超50%全扣；②调整程序不合规计，一例不符全扣。",null,2,"无扣分"]
["过程  （58分）","预算执行（4分）","预算执行率",4,"预算执行进度=截止预算年度12月底已完成投资的预算项目资金/预算资金*100%。(如果预算资金年中进行调整，用调整后金额计算预算执行率)","以年度为单位，执行进度每下降1%扣0.1分，扣完为止。",null,4,"无扣分"]
[null,"项目实施（26分）","管理制度",8,"①是否制定详细、明确的工作年度计划；②是否制定具体开展工作的实施细则；③专项工作的职责分工是否明确和细化；④是否按项目计划开展工作。","①②③④项各2分。酌情扣分。",null,8,"无扣分"]
["过程  （58分）","项目实施（26分）","工作质量",12,"①专项工作开展是否按计划进度进行；②有关工作是否按要求执行了相应的招投标制度、政府采购制度等流程③是否按照实施细则进行流程管理；④是否进行了项目的跟踪、监督、整改，是否对项目中期进行检查和汇报。","①②③④项各3分。酌情扣分。",null,9,"未见对项目进行监督或整改的相关资料，以及对项目中期进行检查汇报的文件"]
[null,null,"绩效自评",6,"①是否按要求开展绩效自评工作；②绩效自评报告格式是否规范，教据是否全面、真实、准确，问题和意见是否具体、可行；③是否按时提交自评报告，绩效自评是否进行公示。","①②③项各2分，发现一例不符扣1分。",null,6,"无扣分"]
[null,"财务管理（28分）","资金使用",18,"①是否符合国家财经法规和财务管理制度以及有关专项资金管理办法的规定；②资金的支付是否有完整的审批程序和手续，重大开支是否经过集体决策；③是否符合专项资金规定的用途和使用范围；④是否存在、挤占、挪用、虚列支出等情况；⑥是否存在违反作风建设相关规定的开支；⑥是否专科目核算，会计信息是否真实、完整、及时。","①②③④⑤⑥项各3分，发现一例不符全扣，情况严重的在总分上加扣。",null,15,"费用报销不规范，入账不及时；原始凭证附件不全等"]
[null,null,"资金监管",6,"①是否制定项目资金管理办法，资金管理办法是否细化，责任分工是否明确，是否严格按照管理办法执行；②是否采取了监督检查等必要的管理手段。","①项2分，发现一例不符扣0.5分。②项2分，未采取手段进行监督管理全扣。",null,6,"无扣分"]
[null,null,"档案保管",4,"与专项工作有关的各类资料是否正确归集，整理归档，妥善保管。","发现一例不符扣0.5分",null,2.5,"招商相关活动无会议、影像、照片等辅助记录等资料归档存贮"]
["产出  （15分）","产出数量",null,5,"绩效目标完成情况。","如：获得荣誉称号、领导书面肯定(在领导的讲话材料中进行肯定）",null,5,"无扣分"]
[null,"产出质量",null,5,"项目期内实际达到既定质量标准的产品或服务数量。","项目产出质量目标的实现程度",null,5,"无扣分"]
["产出  （15分）","产出时效",null,5,"是否按时间截点要求完成相关工作。","项目产出时效目标的实现程度",null,5,"无扣分"]
["效果  （15分）","项目效果",null,5,"项目实施对经济效益、社会发展及生态环境所带来的直接或间接影响情况。该指标为项目个性化指标，只要是与经济效益、社会发展及生态环境影响相关的，根据实际情况细化指标。分值根据项目具体实施情况调整。","对照绩效目标评价项目效果",null,5,"无扣分"]
[null,"可持续性",null,5,"项目后续运行及成效发挥的可持续影响情况。该指标为项目个性化指标，项目实施后会产生的可持续性影响，根据实际情况细化指标。分值根据项目具体实施情况调整。","对照绩效目标评价可持续影响",null,5,"无扣分"]
[null,"满意度",null,5,"社会公众或服务对象对项目实施效果的满意程度。社会公众或服务对象是指因该项目实施而受到影响的部门（单位）、群体或个人。","对照绩效目标评价满意度",null,5,"无扣分"]
["合计（100分）",null,null,100,{"$nulls":3},{"$f":"SUM(H4:H20)","v":91.5},"优秀"]
["评分结论分为：“优秀”、“良好”、“合格”、“不合格”四个等次。"]
["分值：90分（含本数）-100分为“优秀”；75分（含本数）-90分（不含本分数）为“良好”；60分（含本数）-75分（不含本数）为“合格”；60分（不含本分数）以下为“不合格”。"]

{"sheet":"市残联","index":2,"n_rows":23,"n_cols":9,"rows_kept":23,"merged":[[0,0,0,8],[1,0,1,8],[3,0,6,0],[3,1,4,1],[5,1,6,1],[7,0,12,0],[8,1,9,1],[11,1,12,1],[14,0,16,0],[17,0,19,0],[20,0,20,2],[21,0,21,8],[22,0,22,8],[23,0,23,8]]}
["2020年度市残联残疾人基本服务状况和需求信息数据更新专项工作经费绩效评价指标评分表"]
["单位：沅江市残疾人联合会"]
["一级指标","二级指标","三级指标","分值","评分要点","评分标准","指标说明","得分","评分说明"]
["投入  （12分）","项目决策（6分）","项目设立",2,"①项目申请设立是否依据充分，所提交的文件、材料是否符合相关要求；②是否符合本部门职能职责工作需要和工作发展方向。","①②项各1分，发现一例不符扣0.5分。",null,2,"无扣分"]
[null,null,"绩效目标",4,"①是否设立绩效目标，绩效目标是否提交财政部门审核；②是否将项目绩效目标细化分解为具体的绩效指标，是否通过清晰、可衡量的指标值予以体现：③是否与项目年度任务数或计划数相对应；是否与预算确定的项目资金量相匹配。④年度绩效目标是否公示。","①②③④项各1分，发现一例不符扣0.5分。",null,4,"无扣分"]
[null,"预算计划（6分）","预算编制",4,"①是否编报部门预算；②资金预算测算是否合理合规、是否细化；③项目预算是否按要求进行公示。","发现一例不符扣0.5分。",null,4,"无扣分"]
[null,null,"预算调整率",2,"①预算调整率=财政年中预算调整数/年初预算数*100；②调整是否有相关依据，调整程序是否合规。","①调整率10%以内不扣分，10%--50%扣0.5分，超50%全扣；②调整程序不合规计，一例不符全扣。",null,2,"无扣分"]
["过程  （58分）","预算执行（4分）","预算执行率",4,"预算执行进度=截止预算年度12月底已完成投资的预算项目资金/预算资金*100%。(如果预算资金年中进行调整，用调整后金额计算预算执行率)","以年度为单位，执行进度每下降1%扣0.1分，扣完为止。",null,4,"无扣分"]
[null,"项目实施（26分）","管理制度",8,"①是否制定详细、明确的工作年度计划；②是否制定具体开展工作的实施细则；③专项工作的职责分工是否明确和细化；④是否按项目计划开展工作。","①②③④项各2分。酌情扣分。",null,8,"无扣分"]
[null,null,"工作质量",12,"①专项工作开展是否按计划进度进行；②有关工作是否按要求执行了相应的招投标制度、政府采购制度等流程③是否按照实施细则进行流程管理；④是否进行了项目的跟踪、监督、整改，是否对项目中期进行检查和汇报。","①②③④项各3分。酌情扣分。",null,11,"项目跟踪、监督书面汇报资料少"]
[null,"项目实施（26分）","绩效自评",6,"①是否按要求开展绩效自评工作；②绩效自评报告格式是否规范，教据是否全面、真实、准确，问题和意见是否具体、可行；③是否按时提交自评报告，绩效自评是否进行公示。","①②③项各2分，发现一例不符扣1分。",null,0,"未开展绩效自评工作"]
[null,"财务管理（28分）","资金使用",18,"①是否符合国家财经法规和财务管理制度以及有关专项资金管理办法的规定；②资金的支付是否有完整的审批程序和手续，重大开支是否经过集体决策；③是否符合专项资金规定的用途和使用范围；④是否存在、挤占、挪用、虚列支出等情况；⑥是否存在违反作风建设相关规定的开支；⑥是否专科目核算，会计信息是否真实、完整、及时。","①②③④⑤⑥项各3分，发现一例不符全扣，情况严重的在总分上加扣。",null,17,"第二次资金拨付时原始凭证未见验收附件"]
[null,null,"资金监管",6,"①是否制定项目资金管理办法，资金管理办法是否细化，责任分工是否明确，是否严格按照管理办法执行；②是否采取了监督检查等必要的管理手段。","①项2分，发现一例不符扣0.5分。②项2分，未采取手段进行监督管理全扣。",null,6,"无扣分"]
["过程  （58分）","财务管理（28分）","档案保管",4,"与专项工作有关的各类资料是否正确归集，整理归档，妥善保管。","发现一例不符扣0.5分",null,3.5,"资料未规范整理归档"]
["产出  （15分）","产出数量",null,5,"绩效目标完成情况。","如：获得荣誉称号、领导书面肯定(在领导的讲话材料中进行肯定）",null,5,"无扣分"]
[null,"产出质量",null,5,"项目期内实际达到既定质量标准的产品或服务数量。","项目产出质量目标的实现程度",null,5,"无扣分"]
[null,"产出时效",null,5,"是否按时间截点要求完成相关工作。","项目产出时效目标的实现程度",null,5,"无扣分"]
["效果  （15分）","项目效果",null,5,"项目实施对经济效益、社会发展及生态环境所带来的直接或间接影响情况。该指标为项目个性化指标，只要是与经济效益、社会发展及生态环境影响相关的，根据实际情况细化指标。分值根据项目具体实施情况调整。","对照绩效目标评价项目效果",null,5,"无扣分"]
[null,"可持续性",null,5,"项目后续运行及成效发挥的可持续影响情况。该指标为项目个性化指标，项目实施后会产生的可持续性影响，根据实际情况细化指标。分值根据项目具体实施情况调整。","对照绩效目标评价可持续影响",null,5,"无扣分"]
[null,"满意度",null,5,"社会公众或服务对象对项目实施效果的满意程度。社会公众或服务对象是指因该项目实施而受到影响的部门（单位）、群体或个人。","对照绩效目标评价满意度",null,5,"无扣分"]
["合计（100分）",null,null,100,{"$nulls":3},{"$f":"SUM(H4:H20)","v":91.5},"优秀"]
["评分结论分为：“优秀”、“良好”、“合格”、“不合格”四个等次。"]
["分值：90分（含本数）-100分为“优秀”；75分（含本数）-90分（不含本分数）为“良好”；60分（含本数）-75分（不含本数）为“合格”；60分（不含本分数）以下为“不合格”。"]

{"sheet":"水利局河湖垃圾清理工作经费","index":3,"n_rows":23,"n_cols":9,"rows_kept":23,"merged":[[0,0,0,8],[1,0,1,8],[3,0,6,0],[3,1,4,1],[5,1,6,1],[8,0,13,0],[8,1,10,1],[11,1,13,1],[14,0,16,0],[17,0,19,0],[20,0,20,2],[21,0,21,8],[22,0,22,8]]}
["2020年度沅江市河道湖泊管理站河湖垃圾治理工作经费绩效评价指标评分表"]
["单位：沅江市河道湖泊管理站"]
["一级指标","二级指标","三级指标","分值","评分要点","评分标准","指标说明","得分","评分说明"]
["投入  （12分）","项目决策（6分）","项目设立",2,"①项目申请设立是否依据充分，所提交的文件、材料是否符合相关要求；②是否符合本部门职能职责工作需要和工作发展方向。","①②项各1分，发现一例不符扣0.5分。",null,2,"无扣分"]
[null,null,"绩效目标",4,"①是否设立绩效目标，绩效目标是否提交财政部门审核；②是否将项目绩效目标细化分解为具体的绩效指标，是否通过清晰、可衡量的指标值予以体现：③是否与项目年度任务数或计划数相对应；是否与预算确定的项目资金量相匹配。④年度绩效目标是否公示。","①②③④项各1分，发现一例不符扣0.5分。",null,4,"无扣分"]
[null,"预算计划（6分）","预算编制",4,"①是否编报部门预算；②资金预算测算是否合理合规、是否细化；③项目预算是否按要求进行公示。","发现一例不符扣0.5分。",null,3,"项目预算未进行公示"]
[null,null,"预算调整率",2,"①预算调整率=财政年中预算调整数/年初预算数*100；②调整是否有相关依据，调整程序是否合规。","①调整率10%以内不扣分，10%--50%扣0.5分，超50%全扣；②调整程序不合规计，一例不符全扣。",null,2,"无扣分"]
["过程  （58分）","预算执行（4分）","预算执行率",4,"预算执行进度=截止预算年度12月底已完成投资的预算项目资金/预算资金*100%。(如果预算资金年中进行调整，用调整后金额计算预算执行率)","以年度为单位，执行进度每下降1%扣0.1分，扣完为止。",null,0.78,"截止12月底已完成预算项目资金2785424元，预算资金4109600元，预算执行率为67.78%"]
["过程  （58分）","项目实施（26分）","管理制度",8,"①是否制定详细、明确的工作年度计划；②是否制定具体开展工作的实施细则；③专项工作的职责分工是否明确和细化；④是否按项目计划开展工作。","①②③④项各2分。酌情扣分。",null,4,"未制定与项目相关的部门具体工作实施方案"]
[null,null,"工作质量",12,"①专项工作开展是否按计划进度进行；②有关工作是否按要求执行了相应的招投标制度、政府采购制度等流程③是否按照实施细则进行流程管理；④是否进行了项目的跟踪、监督、整改，是否对项目中期进行检查和汇报。","①②③④项各3分。酌情扣分。",null,12,"无扣分"]
[null,null,"绩效自评",6,"①是否按要求开展绩效自评工作；②绩效自评报告格式是否规范，教据是否全面、真实、准确，问题和意见是否具体、可行；③是否按时提交自评报告，绩效自评是否进行公示。","①②③项各2分，发现一例不符扣1分。",null,4,"绩效自评报告未进行公示"]
[null,"财务管理（28分）","资金使用",18,"①是否符合国家财经法规和财务管理制度以及有关专项资金管理办法的规定；②资金的支付是否有完整的审批程序和手续，重大开支是否经过集体决策；③是否符合专项资金规定的用途和使用范围；④是否存在、挤占、挪用、虚列支出等情况；⑥是否存在违反作风建设相关规定的开支；⑥是否专科目核算，会计信息是否真实、完整、及时。","①②③④⑤⑥项各3分，发现一例不符全扣，情况严重的在总分上加扣。",null,9,"部门财务核算未按政府会计要求进行账务处理，未提供财务管理制度；资金支付时偶有无领导审批现象；有设专科目，但部分资金未通过专项核算；资金使用不符合规定用途，如员工节日福利费进专项。"]
[null,null,"资金监管",6,"①是否制定项目资金管理办法，资金管理办法是否细化，责任分工是否明确，是否严格按照管理办法执行；②是否采取了监督检查等必要的管理手段。","①项2分，发现一例不符扣0.5分。②项2分，未采取手段进行监督管理全扣。",null,2,"未制定专项资金使用管理办法"]
[null,null,"档案保管",4,"与专项工作有关的各类资料是否正确归集，整理归档，妥善保管。","发现一例不符扣0.5分",null,4,"无扣分"]
["产出  （15分）","产出数量",null,5,"绩效目标完成情况。","如：获得荣誉称号、领导书面肯定(在领导的讲话材料中进行肯定）",null,3,"提供了2份总结报告，但内容描述的年度完成目标数量基本不一致，无法核实其数量的真实性、准确性。"]
[null,"产出质量",null,5,"项目期内实际达到既定质量标准的产品或服务数量。","项目产出质量目标的实现程度",null,5,"无扣分"]
[null,"产出时效",null,5,"是否按时间截点要求完成相关工作。","项目产出时效目标的实现程度",null,5,"无扣分"]
["效果  （15分）","项目效果",null,5,"项目实施对经济效益、社会发展及生态环境所带来的直接或间接影响情况。该指标为项目个性化指标，只要是与经济效益、社会发展及生态环境影响相关的，根据实际情况细化指标。分值根据项目具体实施情况调整。","对照绩效目标评价项目效果",null,5,"无扣分"]
[null,"可持续性",null,5,"项目后续运行及成效发挥的可持续影响情况。该指标为项目个性化指标，项目实施后会产生的可持续性影响，根据实际情况细化指标。分值根据项目具体实施情况调整。","对照绩效目标评价可持续影响",null,5,"无扣分"]
[null,"满意度",null,5,"社会公众或服务对象对项目实施效果的满意程度。社会公众或服务对象是指因该项目实施而受到影响的部门（单位）、群体或个人。","对照绩效目标评价满意度",null,5,"无扣分"]
["合计（100分）",null,null,100,{"$nulls":3},{"$f":"SUM(H4:H20)","v":74.78},"合格"]
["评分结论分为：“优秀”、“良好”、“合格”、“不合格”四个等次。"]
["分值：90分（含本数）-100分为“优秀”；75分（含本数）-90分（不含本分数）为“良好”；60分（含本数）-75分（不含本数）为“合格”；60分（不含本分数）以下为“不合格”。"]

{"sheet":"水利局砂石管理执法工作经费","index":4,"n_rows":23,"n_cols":9,"rows_kept":23,"merged":[[0,0,0,8],[1,0,1,8],[3,0,6,0],[3,1,4,1],[5,1,6,1],[7,0,8,0],[9,0,13,0],[9,1,10,1],[11,1,13,1],[15,0,16,0],[17,0,19,0],[20,0,20,2],[21,0,21,8],[22,0,22,8]]}
["2020年度沅江市水利局砂石执法大队砂石管理工作经费绩效评价指标评分表"]
["单位：沅江市砂石执法大队"]
["一级指标","二级指标","三级指标","分值","评分要点","评分标准","指标说明","得分","评分说明"]
["投入  （12分）","项目决策（6分）","项目设立",2,"①项目申请设立是否依据充分，所提交的文件、材料是否符合相关要求；②是否符合本部门职能职责工作需要和工作发展方向。","①②项各1分，发现一例不符扣0.5分。",null,2,"无扣分"]
[null,null,"绩效目标",4,"①是否设立绩效目标，绩效目标是否提交财政部门审核；②是否将项目绩效目标细化分解为具体的绩效指标，是否通过清晰、可衡量的指标值予以体现：③是否与项目年度任务数或计划数相对应；是否与预算确定的项目资金量相匹配。④年度绩效目标是否公示。","①②③④项各1分，发现一例不符扣0.5分。",null,3,"年度绩效目标未公示"]
[null,"预算计划（6分）","预算编制",4,"①是否编报部门预算；②资金预算测算是否合理合规、是否细化；③项目预算是否按要求进行公示。","发现一例不符扣0.5分。",null,4,"无扣分"]
[null,null,"预算调整率",2,"①预算调整率=财政年中预算调整数/年初预算数*100；②调整是否有相关依据，调整程序是否合规。","①调整率10%以内不扣分，10%--50%扣0.5分，超50%全扣；②调整程序不合规计，一例不符全扣。",null,2,"无扣分"]
["过程  （58分）","预算执行（4分）","预算执行率",4,"预算执行进度=截止预算年度12月底已完成投资的预算项目资金/预算资金*100%。(如果预算资金年中进行调整，用调整后金额计算预算执行率)","以年度为单位，执行进度每下降1%扣0.1分，扣完为止。",null,4,"无扣分"]
[null,"项目实施（26分）","管理制度",8,"①是否制定详细、明确的工作年度计划；②是否制定具体开展工作的实施细则；③专项工作的职责分工是否明确和细化；④是否按项目计划开展工作。","①②③④项各2分。酌情扣分。",null,4,"无年度工作计划，无具体实施方案"]
["过程  （58分）","项目实施（26分）","工作质量",12,"①专项工作开展是否按计划进度进行；②有关工作是否按要求执行了相应的招投标制度、政府采购制度等流程③是否按照实施细则进行流程管理；④是否进行了项目的跟踪、监督、整改，是否对项目中期进行检查和汇报。","①②③④项各3分。酌情扣分。",null,12,"无扣分"]
[null,null,"绩效自评",6,"①是否按要求开展绩效自评工作；②绩效自评报告格式是否规范，教据是否全面、真实、准确，问题和意见是否具体、可行；③是否按时提交自评报告，绩效自评是否进行公示。","①②③项各2分，发现一例不符扣1分。",null,3,"绩效自评报告未按规定的格式填写且未在相关平台予以公示"]
[null,"财务管理（28分）","资金使用",18,"①是否符合国家财经法规和财务管理制度以及有关专项资金管理办法的规定；②资金的支付是否有完整的审批程序和手续，重大开支是否经过集体决策；③是否符合专项资金规定的用途和使用范围；④是否存在、挤占、挪用、虚列支出等情况；⑥是否存在违反作风建设相关规定的开支；⑥是否专科目核算，会计信息是否真实、完整、及时。","①②③④⑤⑥项各3分，发现一例不符全扣，情况严重的在总分上加扣。",null,15,"记账凭证所附原始凭证不齐全"]
[null,null,"资金监管",6,"①是否制定项目资金管理办法，资金管理办法是否细化，责任分工是否明确，是否严格按照管理办法执行；②是否采取了监督检查等必要的管理手段。","①项2分，发现一例不符扣0.5分。②项2分，未采取手段进行监督管理全扣。",null,6,"无扣分"]
[null,null,"档案保管",4,"与专项工作有关的各类资料是否正确归集，整理归档，妥善保管。","发现一例不符扣0.5分",null,3.5,"年度终了未将相关文件资料装订成册"]
["产出  （15分）","产出数量",null,5,"绩效目标完成情况。","如：获得荣誉称号、领导书面肯定(在领导的讲话材料中进行肯定）",null,5,"无扣分"]
["产出  （15分）","产出质量",null,5,"项目期内实际达到既定质量标准的产品或服务数量。","项目产出质量目标的实现程度",null,5,"无扣分"]
[null,"产出时效",null,5,"是否按时间截点要求完成相关工作。","项目产出时效目标的实现程度",null,5,"无扣分"]
["效果  （15分）","项目效果",null,5,"项目实施对经济效益、社会发展及生态环境所带来的直接或间接影响情况。该指标为项目个性化指标，只要是与经济效益、社会发展及生态环境影响相关的，根据实际情况细化指标。分值根据项目具体实施情况调整。","对照绩效目标评价项目效果",null,5,"无扣分"]
[null,"可持续性",null,5,"项目后续运行及成效发挥的可持续影响情况。该指标为项目个性化指标，项目实施后会产生的可持续性影响，根据实际情况细化指标。分值根据项目具体实施情况调整。","对照绩效目标评价可持续影响",null,5,"无扣分"]
[null,"满意度",null,5,"社会公众或服务对象对项目实施效果的满意程度。社会公众或服务对象是指因该项目实施而受到影响的部门（单位）、群体或个人。","对照绩效目标评价满意度",null,5,"无扣分"]
["合计（100分）",null,null,100,{"$nulls":3},{"$f":"SUM(H4:H20)","v":88.5},"良好"]
["评分结论分为：“优秀”、“良好”、“合格”、“不合格”四个等次。"]
["分值：90分（含本数）-100分为“优秀”；75分（含本数）-90分（不含本分数）为“良好”；60分（含本数）-75分（不含本数）为“合格”；60分（不含本分数）以下为“不合格”。"]

{"sheet":"民政局殡葬改革","index":5,"n_rows":23,"n_cols":9,"rows_kept":23,"merged":[[0,0,0,8],[1,0,1,8],[3,0,6,0],[3,1,4,1],[5,1,6,1],[7,0,12,0],[8,1,10,1],[11,1,12,1],[14,0,16,0],[17,0,19,0],[20,0,20,2],[21,0,21,8],[22,0,22,8]]}
["2020年度沅江市民政局殡葬改革工作经费绩效评价指标评分表"]
["单位：沅江市民政局"]
["一级指标","二级指标","三级指标","分值","评分要点","评分标准","指标说明","得分","评分说明"]
["投入  （12分）","项目决策（6分）","项目设立",2,"①项目申请设立是否依据充分，所提交的文件、材料是否符合相关要求；②是否符合本部门职能职责工作需要和工作发展方向。","①②项各1分，发现一例不符扣0.5分。",null,2,"无扣分"]
[null,null,"绩效目标",4,"①是否设立绩效目标，绩效目标是否提交财政部门审核；②是否将项目绩效目标细化分解为具体的绩效指标，是否通过清晰、可衡量的指标值予以体现：③是否与项目年度任务数或计划数相对应；是否与预算确定的项目资金量相匹配。④年度绩效目标是否公示。","①②③④项各1分，发现一例不符扣0.5分。",null,4,"无扣分"]
[null,"预算计划（6分）","预算编制",4,"①是否编报部门预算；②资金预算测算是否合理合规、是否细化；③项目预算是否按要求进行公示。","发现一例不符扣0.5分。",null,0,"此专项为上一级政府部门直接拨款，沅江市民政局未对此项专项做部门预算，但也未提供资金来源的相关文件"]
[null,null,"预算调整率",2,"①预算调整率=财政年中预算调整数/年初预算数*100；②调整是否有相关依据，调整程序是否合规。","①调整率10%以内不扣分，10%--50%扣0.5分，超50%全扣；②调整程序不合规计，一例不符全扣。",null,2,"无扣分"]
["过程  （58分）","预算执行（4分）","预算执行率",4,"预算执行进度=截止预算年度12月底已完成投资的预算项目资金/预算资金*100%。(如果预算资金年中进行调整，用调整后金额计算预算执行率)","以年度为单位，执行进度每下降1%扣0.1分，扣完为止。",null,2.4,"12月底已完成投资预算项目资金18514773.2元，预算资金为22000000元，预算执行率为84.16%"]
[null,"项目实施（26分）","管理制度",8,"①是否制定详细、明确的工作年度计划；②是否制定具体开展工作的实施细则；③专项工作的职责分工是否明确和细化；④是否按项目计划开展工作。","①②③④项各2分。酌情扣分。",null,8,"无扣分"]
[null,null,"工作质量",12,"①专项工作开展是否按计划进度进行；②有关工作是否按要求执行了相应的招投标制度、政府采购制度等流程③是否按照实施细则进行流程管理；④是否进行了项目的跟踪、监督、整改，是否对项目中期进行检查和汇报。","①②③④项各3分。酌情扣分。",null,12,"无扣分"]
[null,null,"绩效自评",6,"①是否按要求开展绩效自评工作；②绩效自评报告格式是否规范，教据是否全面、真实、准确，问题和意见是否具体、可行；③是否按时提交自评报告，绩效自评是否进行公示。","①②③项各2分，发现一例不符扣1分。",null,3,"自评报告格式不规范，且报告未在时限内在相关平台予以公示"]
[null,"财务管理（28分）","资金使用",18,"①是否符合国家财经法规和财务管理制度以及有关专项资金管理办法的规定；②资金的支付是否有完整的审批程序和手续，重大开支是否经过集体决策；③是否符合专项资金规定的用途和使用范围；④是否存在、挤占、挪用、虚列支出等情况；⑥是否存在违反作风建设相关规定的开支；⑥是否专科目核算，会计信息是否真实、完整、及时。","①②③④⑤⑥项各3分，发现一例不符全扣，情况严重的在总分上加扣。",null,18,"无扣分"]
[null,null,"资金监管",6,"①是否制定项目资金管理办法，资金管理办法是否细化，责任分工是否明确，是否严格按照管理办法执行；②是否采取了监督检查等必要的管理手段。","①项2分，发现一例不符扣0.5分。②项2分，未采取手段进行监督管理全扣。",null,3,"无专项资金使用管理办法"]
["过程  （58分）","财务管理（28分）","档案保管",4,"与专项工作有关的各类资料是否正确归集，整理归档，妥善保管。","发现一例不符扣0.5分",null,2,"各种资料散乱，未妥善保管。如招投标等资料保管不规范，部分资料缺失"]
["产出  （15分）","产出数量",null,5,"绩效目标完成情况。","如：获得荣誉称号、领导书面肯定(在领导的讲话材料中进行肯定）",null,5,"无扣分"]
[null,"产出质量",null,5,"项目期内实际达到既定质量标准的产品或服务数量。","项目产出质量目标的实现程度进行评分",null,5,"无扣分"]
[null,"产出时效",null,5,"是否按时间截点要求完成相关工作。","项目产出时效目标的实现程度进行评分",null,3,"农村公益性公墓未完全竣工验收，部分款项未支付到位"]
["效果  （15分）","项目效果",null,5,"项目实施对经济效益、社会发展及生态环境所带来的直接或间接影响情况。该指标为项目个性化指标，只要是与经济效益、社会发展及生态环境影响相关的，根据实际情况细化指标。分值根据项目具体实施情况调整。","对照绩效目标评价项目效果",null,5,"无扣分"]
[null,"可持续性",null,5,"项目后续运行及成效发挥的可持续影响情况。该指标为项目个性化指标，项目实施后会产生的可持续性影响，根据实际情况细化指标。分值根据项目具体实施情况调整。","对照绩效目标评价可持续影响",null,5,"无扣分"]
[null,"满意度",null,5,"社会公众或服务对象对项目实施效果的满意程度。社会公众或服务对象是指因该项目实施而受到影响的部门（单位）、群体或个人。","对照绩效目标评价满意度",null,5,"无扣分"]
["合计（100分）",null,null,100,{"$nulls":3},{"$f":"SUM(H4:H20)","v":84.4},"良好"]
["评分结论分为：“优秀”、“良好”、“合格”、“不合格”四个等次。"]
["分值：90分（含本数）-100分为“优秀”；75分（含本数）-90分（不含本分数）为“良好”；60分（含本数）-75分（不含本数）为“合格”；60分（不含本分数）以下为“不合格”。"]

{"sheet":"市场服务中心","index":6,"n_rows":33,"n_cols":9,"rows_kept":33,"merged":[[0,0,0,8],[1,0,1,8],[3,0,7,0],[3,1,4,1],[5,1,7,1],[9,0,14,0],[9,1,14,1],[15,0,21,0],[15,1,18,1],[19,1,20,1],[22,0,23,0],[22,1,23,1],[24,0,25,0],[24,1,25,1],[26,0,29,0],[26,1,29,1],[30,0,30,2],[31,0,31,8],[32,0,32,8]]}
["2020年度沅江市市场服务中心整体支出资金绩效评价指标评分表"]
["单位：沅江市市场服务中心"]
["一级指标","二级指标","三级指标","分值","评分要点","评分标准","指标说明","得分","评分说明"]
["投入  （20分）","目标设定    （5分）","绩效目标合理性",2,"①符合国家法律法规、国民经济和社会发展总体规划；②符合部门“三定”方案确定的职责；③是否符合部门制定的中长期实施规划。","①项计1分，②③项各计0.5分。",null,1.5,"未制定中长期实施规划"]
[null,null,"绩效指标明确性",3,"①将部门整体的绩效目标细化分解为具体的工作任务；②通过清晰、可衡量的指标值予以体现；③与部门年度的任务数或计划数相对应；④与本年度部门预算资金相匹配。","①④项各计1分，②③项各计0.5分。",null,0,"无绩效指标细化工作文件资料、无法体现指标值及对应部门计划。"]
[null,"预算配置（15分）","在职人员控制率",5,"在职人员控制率=（在职人员数/编制数）×100%。在职人员数：部门实际在职人数，以财政部确定的部门决算编制口径为准。编制数：机构编制部门核定批复的部门的人员编制数。","小于或等于1计5分，否则按比例计分。","部门编制数112人，在职人员75人，在职人员控制率66.96%",5,"无扣分"]
[null,null,"“三公经费”变动率",5,"“三公经费”变动率=[(本年度“三公经费”总额-上年度“三公经费”总额）/上年度“三公经费”总额]×100%。“三公经费”：年度预算安排的因公出国（境）费、公务车辆购置及运行费和公务招待费。","下降的计5分，增加的按比例扣减。","本年经费3.44万，上年经费3.75万，三公经费变动率下降8.27%",5,"无扣分"]
[null,null,"重点支出安排率",5,"重点支出安排率=（重点项目支出/项目总支出）×100%。重点项目支出：部门年度预算安排的，与本部门履职和发展密切相关、具有明显社会和经济影响、党委政府关心或社会比较关注的项目支出总额。项目总支出：部门年度预算安排的项目支出总额。","实际得分=支出安排率*5分。",null,1.47,"重点专项为市场整治与维修，重点项目支出为25万，项目总支出85万，重点支出安排率为29.4%"]
["过程  （30分）","预算执行（20分）","预算完成率",4,"预算完成率=（预算完成数/预算数）×100%。预算完成数：部门本年度实际完成的预算数。预算数：财政部门批复的本年度部门预算数。","完成年初预算计4分，未完成年初预算按比例扣减。","预算数750.006万，预算完成数782.15万，预算完成率104.29%",4,"无扣分"]
["过程  （30分）","预算执行（20分）","预算调整率",2,"预算调整率=（预算调整数/预算数）×100%。预算调整数：部门在本年度内涉及预算的追加、追减或结构调整的资金总和(因落实国家政策、发生不可抗力、上级部门或同级党委政府临时交办而产生的调整除外）。","未调整的计2分，调整了的除特殊原因外按比例扣减。",null,1.91,"预算数为750万，实际为782.15万，调整金额为32.15万，预算调整率为4.29%"]
[null,null,"支付进度率",2,"支付进度率=（实际支付进度/既定支付进度）×100%。实际支付进度：部门在某一时点的支出预算执行总数与年度支出预算数的比率。既定支付进度：由部门在申报部门整体绩效目标时，参照序时支付进度、前三年支付进度、同级部门平均支付进度水平等确定的，在某一时点应达到的支付进度(比率)。","完成年终进度的计1分，按季度完成预算进度的计1分。","实际支付进度：766.67/750*100%=102.23%；既定支付进度100%；支付进度率为102.23%",2,"无扣分"]
[null,null,"结转结余控制率",4,"结转结余控制率=（本年结转结余总额-上年结转结余总额）/上年结转结余总额×100%。结转结余总额：部门本年度的结转资金与结余资金之和（以决算数为准）","低于15%的计4分，每超过5个百分点扣1分，扣完为止。","本年结转结余133.24万，上年结转结余116.42万，结转结余控制率为14.45%",4,"无扣分"]
[null,null,"公用经费控制率",2,"公用经费控制率=(实际支出公用经费总额/预算安排公用经费总额）×100%。","为100%的计2分，每超过1个百分点扣0.1分，扣完为止。",null,1.6,"实际支出720.1908万，预算安排697.006万，公用经费控制率103.33%，公用经费超3.33%"]
[null,null,"“三公经费”控制率",2,"“三公经费”控制率=(“三公经费”实际支出数/“三公经费”预算安排数）×100%。","为100%的计2分，每超过1个百分点扣0.5分，扣完为止。","实际支出3.44万，预算安排5万，三公经费控制率68.8%",2,"无扣分"]
[null,null,"政府采购执行率",4,"政府采购执行率=(实际政府采购金额/政府采购预算数）×100%；政府采购预算：采购机关根据事业发展计划和行政任务编制的、并经过规定程序批准的年度政府采购计划。","为100%的计2分，每低于1个百分点扣0.5分，扣完为止。",null,4,"无扣分"]
["过程  （30分）","预算管理 （5分）","管理制度健全性",2,"①已制定或具有预算资金管理办法、内部财务管理制度、会计核算制度等管理制度：②相关管理制度合法、合规、完整；③相关管理制度得到有效执行。","①项计1分，②③项各计0.5分。",null,1,"马路市场整治未见整改方案"]
[null,null,"资金使用合规性",1,"①符合国家财经法规和财务管理制度规定以及有关专项资金管理办法的规定；②资金的拨付有完整的审批程序和手续；③项目的重大开支经过评估论证；④符合部门预算批复的用途；⑤不存在截留、挤占、挪用、虚列支出等情况。","每项计0.2分。",null,0.6,"会计账务处理不合规，报销不规范，发票无纳税人识别码、抬头错误等；马路整改费用支出为餐饮费。"]
[null,null,"预决算信息公开性",1,"①按规定内容公开预决算信息；②按规定时限公开预决算信息。预决算信息是指与部门预算、执行、决算、监督、绩效等管理相关的信息。","每项计0.5分。",null,0.5,"决算截止至2021.8.3日未在相关平台公示"]
[null,null,"基础信息完善性",1,"①基础数据信息和会计信息资料真实；②基础数据信息和会计信息资料完整；③基础数据信息和会计信息资料准确。","①项计0.4分，②③项各计0.3分。",null,0.4,"会计信息资料不完整、准确"]
[null,"资产管理（5分）","管理制度健全性",2,"①制定或具有资产管理制度；②相关资金管理制度合法、合规、完整；③相关资产管理制度得到有效执行。","①项计1分，②③项\n各计0.5分。",null,2,"无扣分"]
[null,null,"资产管理安全性",2,"①资产保存完整；②资产配置合理；③资产处置规范；④资产账务管理合规、帐实相符；⑤资产有偿使用及处置收入及时足额上缴。","每项计0.4分。",null,2,"无扣分"]
[null,"资产管理（5分）","固定资产利用率",1,"固定资产利用率=（实际在用固定资产总额/所有固定资产总额）×100%","利用率为100%的计1\n分，每降1个百分点扣0.1分，扣完为止",null,1,"无扣分"]
["产出  （30分）","职责履行（30分）","实际完成率",8,"实际完成率得分=完成市委市政府绩效考核得分或上级主管部门考核指标得分/指标分值","按完成率比例扣分。",null,8,"无扣分"]
[null,null,"完成及时率",4,"完成及时率=（及时完成实际工作数/计划工作数）×100%。","1-4季度各计1分。",null,4,"无扣分"]
["产出  （30分）","职责履行（30分）","质量达标率",8,"质量达标率=(质量达标实际工作数/计划工作数）×100%。","实际得分=达标率*8分",null,8,"无扣分"]
[null,null,"重点工作办结率",10,"重点工作办结率=（重点工作实际完成数/交办或下达数）×100%","实际得分=办结率*10分",null,10,"无扣分"]
["效益  （20分）","履职效益（20分）","经济效益",5,"项目实施对经济发展所带来的直接或间接影响情况。该指标为项目个性化指标，只要是与经济效益有关的，根据实际情况细化指标。分值根据项目具体情况调整。","对照效益目标评价经济效益。",null,3,"2020年度完成非税收入75万。会计资料数据为其他收入56万，报告数据与会计数据不相符"]
[null,null,"社会效益",5,"项目实施对社会发展所带来的直接或间接影响情况。该指标为项目个性化指标，只要是与社会效益有关的，根据实际情况细化指标。分值根据项目具体情况调整。","对照绩效目标评价社会效益。",null,5,"无扣分"]
[null,null,"生态效益",5,"项目实施对生态环境所带来的真接或间接影响情况。该指标为项目个性化指标，项目实施对生态、环境产生影响的，根据实际情况细化指标。分值根据项目具体情况调整。","对照绩效目标评价生态效益。",null,4,"未提供不销售野生鱼承诺书"]
[null,null,"社会公众或服务对象满意度",5,"社会公众或服务对象对项目实施效果的满意程度。社会公众或服务对象是指因该项目实施而受到影响的部门(单位)、群体或个人。一般采取社会调查的方式。","对照绩效评价社会公众或服务对象满意度。",null,5,"无扣分"]
["合计（100分）",null,null,100,{"$nulls":3},{"$f":"SUM(H4:H30)","v":86.98},"良好"]
["评分结论分为：“优秀”、“良好”、“合格”、“不合格”四个等次。"]
["分值：90分（含本数）-100分为“优秀”；75分（含本数）-90分（不含本分数）为“良好”；60分（含本数）-75分（不含本数）为“合格”；60分（不含本分数）以下为“不合格”。"]

{"sheet":"农业农村局","index":7,"n_rows":31,"n_cols":9,"rows_kept":31,"merged":[[0,0,0,8],[3,0,7,0],[3,1,4,1],[5,1,7,1],[8,0,10,0],[8,1,10,1],[11,0,21,0],[11,1,14,1],[15,1,18,1],[19,1,21,1],[22,0,25,0],[22,1,25,1],[26,0,29,0],[26,1,29,1],[30,0,30,2]]}
["部门整体支出资金绩效评价指标评分表"]
["单位：","沅江市农村农业局"]
["一级指标","二级指标","三级指标","分值","评分要点","评分标准","指标说明","得分","评分说明"]
["投入  （20分）","目标设定    （5分）","绩效目标合理性",2,"①符合国家法律法规、国民经济和社会发展总体规划；②符合部门“三定”方案确定的职责；③是否符合部门制定的中长期实施规划。","①项计1分，②③项各计0.5分。",null,2,"无扣分"]
[null,null,"绩效指标明确性",3,"①将部门整体的绩效目标细化分解为具体的工作任务；②通过清晰、可衡量的指标值予以体现；③与部门年度的任务数或计划数相对应；④与本年度部门预算资金相匹配。","①④项各计1分，②③项各计0.5分。",null,3,"无扣分"]
[null,"预算配置（15分）","在职人员控制率",5,"在职人员控制率=（在职人员数/编制数）×100%。在职人员数：部门实际在职人数，以财政部确定的部门决算编制口径为准。编制数：机构编制部门核定批复的部门的人员编制数。","小于或等于1计5分，否则按比例计分。",null,5,"无扣分"]
[null,null,"“三公经费”变动率",5,"“三公经费”变动率=[(本年度“三公经费”总额-上年度“三公经费”总额）/上年度“三公经费”总额]×100%。“三公经费”：年度预算安排的因公出国（境）费、公务车辆购置及运行费和公务招待费。","下降的计5分，增加的按比例扣减。",null,5,"无扣分"]
[null,null,"重点支出安排率",5,"重点支出安排率=（重点项目支出/项目总支出）×100%。重点项目支出：部门年度预算安排的，与本部门履职和发展密切相关、具有明显社会和经济影响、党委政府关心或社会比较关注的项目支出总额。项目总支出：部门年度预算安排的项目支出总额。","实际得分=支出安排率*5分。",null,4.01,"重点项目支出为162236417.56元，项目总支出为202395735.69元，重点项目占总项目的80.16%"]
["过程  （30分）","预算执行（20分）","预算完成率",4,"预算完成率=（预算完成数/预算数）×100%。预算完成数：部门本年度实际完成的预算数。预算数：财政部门批复的本年度部门预算数。","完成年初预算计4分，未完成年初预算按比例扣减。",null,4,"无扣分"]
[null,null,"预算调整率",2,"预算调整率=（预算调整数/预算数）×100%。预算调整数：部门在本年度内涉及预算的追加、追减或结构调整的资金总和(因落实国家政策、发生不可抗力、上级部门或同级党委政府临时交办而产生的调整除外）。","未调整的计2分，调整了的除特殊原因外按比例扣减。",null,1.53,"预算数为1937.763万元，实际完成数为2392.6万元，追加调整金额为454.84万元，调整率为23.47%"]
[null,null,"支付进度率",2,"支付进度率=（实际支付进度/既定支付进度）×100%。实际支付进度：部门在某一时点的支出预算执行总数与年度支出预算数的比率。既定支付进度：由部门在申报部门整体绩效目标时，参照序时支付进度、前三年支付进度、同级部门平均支付进度水平等确定的，在某一时点应达到的支付进度(比率)。","完成年终进度的计1分，按季度完成预算进度的计1分。",null,2,"无扣分"]
["过程  （30分）","预算执行（20分）","结转结余控制率",4,"结转结余控制率=（本年结转结余总额-上年结转结余总额）/上年结转结余总额×100%。结转结余总额：部门本年度的结转资金与结余资金之和（以决算数为准）","低于15%的计4分，每超过5个百分点扣1分，扣完为止。",null,4,"无扣分"]
[null,null,"公用经费控制率",2,"公用经费控制率=(实际支出公用经费总额/预算安排公用经费总额）×100%。","为100%的计2分，每超过1个百分点扣0.1分，扣完为止。",null,0,"实际支出公用经费为6754.45万元，预算安排公用经费为214万元，公用经费控制率3156%"]
[null,null,"“三公经费”控制率",2,"“三公经费”控制率=(“三公经费”实际支出数/“三公经费”预算安排数）×100%。","为100%的计2分，每超过1个百分点扣0.5分，扣完为止。",null,2,"无扣分"]
[null,null,"政府采购执行率",4,"政府采购执行率=(实际政府采购金额/政府采购预算数）×100%；政府采购预算：采购机关根据事业发展计划和行政任务编制的、并经过规定程序批准的年度政府采购计划。","为100%的计2分，每低于1个百分点扣0.5分，扣完为止。",null,3.5,"未制定年度政府采购计划"]
[null,"预算管理 （5分）","管理制度健全性",2,"①已制定或具有预算资金管理办法、内部财务管理制度、会计核算制度等管理制度：②相关管理制度合法、合规、完整；③相关管理制度得到有效执行。","①项计1分，②③项各计0.5分。",null,2,"无扣分"]
[null,null,"资金使用合规性",1,"①符合国家财经法规和财务管理制度规定以及有关专项资金管理办法的规定；②资金的拨付有完整的审批程序和手续；③项目的重大开支经过评估论证；④符合部门预算批复的用途；⑤不存在截留、挤占、挪用、虚列支出等情况。","每项计0.2分。",null,0.8,"报销不规范，发票不正规"]
[null,null,"预决算信息公开性",1,"①按规定内容公开预决算信息；②按规定时限公开预决算信息。预决算信息是指与部门预算、执行、决算、监督、绩效等管理相关的信息。","每项计0.5分。",null,0.5,"部门决算未在相关平台予以公示"]
[null,null,"基础信息完善性",1,"①基础数据信息和会计信息资料真实；②基础数据信息和会计信息资料完整；③基础数据信息和会计信息资料准确。","①项计0.4分，②③项各计0.3分。",null,1,"无扣分"]
[null,"资产管理（5分）","管理制度健全性",2,"①制定或具有资产管理制度；②相关资金管理制度合法、合规、完整；③相关资产管理制度得到有效执行。","①项计1分，②③项\n各计0.5分。",null,2,"无扣分"]
[null,null,"资产管理安全性",2,"①资产保存完整；②资产配置合理；③资产处置规范；④资产账务管理合规、帐实相符；⑤资产有偿使用及处置收入及时足额上缴。","每项计0.4分。",null,2,"无扣分"]
[null,null,"固定资产利用率",1,"固定资产利用率=（实际在用固定资产总额/所有固定资产总额）×100%","利用率为100%的计1\n分，每降1个百分点扣0.1分，扣完为止",null,1,"无扣分"]
["产出  （30分）","职责履行（30分）","实际完成率",8,"实际完成率得分=完成市委市政府绩效考核得分或上级主管部门考核指标得分/指标分值","按完成率比例扣分。",null,8,"无扣分"]
[null,null,"完成及时率",4,"完成及时率=（及时完成实际工作数/计划工作数）×100%。","1-4季度各计1分。",null,4,"无扣分"]
[null,null,"质量达标率",8,"质量达标率=(质量达标实际工作数/计划工作数）×100%。","实际得分=达标率*8分",null,8,"无扣分"]
[null,null,"重点工作办结率",10,"重点工作办结率=（重点工作实际完成数/交办或下达数）×100%","实际得分=办结率*10分",null,10,"无扣分"]
["效益  （20分）","履职效益（20分）","经济效益",5,"项目实施对经济发展所带来的直接或间接影响情况。该指标为项目个性化指标，只要是与经济效益有关的，根据实际情况细化指标。分值根据项目具体情况调整。","对照效益目标评价经济效益。",null,5,"无扣分"]
[null,null,"社会效益",5,"项目实施对社会发展所带来的直接或间接影响情况。该指标为项目个性化指标，只要是与社会效益有关的，根据实际情况细化指标。分值根据项目具体情况调整。","对照绩效目标评价社会效益。",null,5,"无扣分"]
[null,null,"生态效益",5,"项目实施对生态环境所带来的真接或间接影响情况。该指标为项目个性化指标，项目实施对生态、环境产生影响的，根据实际情况细化指标。分值根据项目具体情况调整。","对照绩效目标评价生态效益。",null,5,"无扣分"]
[null,null,"社会公众或服务对象满意度",5,"社会公众或服务对象对项目实施效果的满意程度。社会公众或服务对象是指因该项目实施而受到影响的部门(单位)、群体或个人。一般采取社会调查的方式。","对照绩效评价社会公众或服务对象满意度。",null,5,"无扣分"]
["合计（100分）",null,null,100,{"$nulls":3},{"$f":"SUM(H4:H30)","v":95.34},"优秀"]

{"sheet":"部分专项经费绩效评价指标评分表 ","index":8,"n_rows":21,"n_cols":9,"rows_kept":21,"merged":[[0,0,0,8],[3,0,6,0],[3,1,4,1],[5,1,6,1],[7,0,10,0],[8,1,10,1],[11,0,13,0],[11,1,13,1],[14,0,16,0],[17,0,19,0],[20,0,20,2]]}
["部门专项经费绩效评价指标评分表"]
["单位："]
["一级指标","二级指标","三级指标","分值","评分要点","评分标准","指标说明","得分","评分说明"]
["投入  （12分）","项目决策（6分）","项目设立",2,"①项目申请设立是否依据充分，所提交的文件、材料是否符合相关要求；②是否符合本部门职能职责工作需要和工作发展方向。","①②项各1分，发现一例不符扣0.5分。"]
[null,null,"绩效目标",4,"①是否设立绩效目标，绩效目标是否提交财政部门审核；②是否将项目绩效目标细化分解为具体的绩效指标，是否通过清晰、可衡量的指标值予以体现：③是否与项目年度任务数或计划数相对应；是否与预算确定的项目资金量相匹配。④年度绩效目标是否公示。","①②③④项各1分，发现一例不符扣0.5分。"]
[null,"预算计划（6分）","预算编制",4,"①是否编报部门预算；②资金预算测算是否合理合规、是否细化；③项目预算是否按要求进行公示。","发现一例不符扣0.5分。"]
[null,null,"预算调整率",2,"①预算调整率=财政年中预算调整数/年初预算数*100；②调整是否有相关依据，调整程序是否合规。","①调整率10%以内不扣分，10%--50%扣0.5分，超50%全扣；②调整程序不合规计，一例不符全扣。"]
["过程  （58分）","预算执行（4分）","预算执行率",4,"预算执行进度=截止预算年度12月底已完成投资的预算项目资金/预算资金*100%。(如果预算资金年中进行调整，用调整后金额计算预算执行率)","以年度为单位，执行进度每下降1%扣0.1分，扣完为止。"]
[null,"项目实施（26分）","管理制度",8,"①是否制定详细、明确的工作年度计划；②是否制定具体开展工作的实施细则；③专项工作的职责分工是否明确和细化；④是否按项目计划开展工作。","①②③④项各2分。酌情扣分。"]
[null,null,"工作质量",12,"①专项工作开展是否按计划进度进行；②有关工作是否按要求执行了相应的招投标制度、政府采购制度等流程③是否按照实施细则进行流程管理；④是否进行了项目的跟踪、监督、整改，是否对项目中期进行检查和汇报。","①②③④项各3分。酌情扣分。"]
[null,null,"绩效自评",6,"①是否按要求开展绩效自评工作；②绩效自评报告格式是否规范，教据是否全面、真实、准确，问题和意见是否具体、可行；③是否按时提交自评报告，绩效自评是否进行公示。","①②③项各2分，发现一例不符扣1分。"]
["过程  （58分）","财务管理（28分）","资金使用",18,"①是否符合国家财经法规和财务管理制度以及有关专项资金管理办法的规定；②资金的支付是否有完整的审批程序和手续，重大开支是否经过集体决策；③是否符合专项资金规定的用途和使用范围；④是否存在、挤占、挪用、虚列支出等情况；⑥是否存在违反作风建设相关规定的开支；⑥是否专科目核算，会计信息是否真实、完整、及时。","①②③④⑤⑥项各3分，发现一例不符全扣，情况严重的在总分上加扣。"]
[null,null,"资金监管",6,"①是否制定项目资金管理办法，资金管理办法是否细化，责任分工是否明确，是否严格按照管理办法执行；②是否采取了监督检查等必要的管理手段。","①项2分，发现一例不符扣0.5分。②项2分，未采取手段进行监督管理全扣。"]
[null,null,"档案保管",4,"与专项工作有关的各类资料是否正确归集，整理归档，妥善保管。","发现一例不符扣0.5分"]
["产出  （15分）","产出数量",null,5,"绩效目标完成情况。","如：获得荣誉称号、领导书面肯定(在领导的讲话材料中进行肯定）"]
[null,"产出质量",null,5]
[null,"产出时效",null,5,"是否按时间截点要求完成相关工作。"]
["效果  （15分）","项目效果",null,5]
[null,"可持续性",null,5]
[null,"满意度",null,5]
["合计（100分）",null,null,100]